[Event "Kupreichik Memorial Rapid 2019"]
[Site "Minsk"]
[Date "2019.08.15"]
[Round "2.26"]
[White "Oblamski, Vladimir"]
[Black "Lashkevich, Andrei"]
[Result "1-0"]
[ECO "B15"]
[WhiteElo "2088"]
[BlackElo "1447"]
[Annotator "NA"]
[PlyCount "119"]
[EventDate "2019.08.15"]
[EventType "swiss"]
[EventCountry "BLR"]
[SourceTitle "playchess.com"]
[Source "ChessBase"]
[SourceQuality "1"]
[TimeControl "900+10"]

1. e4 {[%emt 0:00:00]} c6 {[%emt 0:00:00]} 2. d4 {[%emt 0:00:00]} d5 {[%emt 0:00:00]} 3. Nc3 {[%emt 0:00:00]} h6 {[%emt 0:00:00]} 4. Nf3 {[%emt 0:00:19]} Nf6 {[%emt 0:00:00]} 5. Bd3 {[%emt 0:00:15]} dxe4 {[%emt 0:00:04]} 6. Nxe4 {[%emt 0:00:02]} Nbd7 {[%emt 0:00:02]} 7. Nc3 {[%emt 0:00:59]} Qc7 {[%emt 0:00:13]} 8. O-O {[%emt 0:00:07]} e6 {[%emt 0:00:03]} 9. Qe2 {[%emt 0:00:20]} Be7 {[%emt 0:00:04]} 10. Re1 {[%emt 0:01:16]} O-O {[%emt 0:00:05]} 11. Bd2 {[%emt 0:00:10]} Re8 {[%emt 0:02:09]} 12. Rad1 {[%emt 0:02:19]} b5 {[%emt 0:00:34]} 13. Ne5 {[%emt 0:00:34]} Nb6 {[%emt 0:00:43]} 14. Ne4 {[%emt 0:01:55]} Nbd5 {[%emt 0:00:47]} 15. c3 {[%emt 0:01:11]} Bb7 {[%emt 0:02:06]} 16. Nc5 {[%emt 0:01:40]} Rad8 {[%emt 0:00:54]} 17. Nxf7 {[%emt 0:00:54]} Kxf7 {[%emt 0:01:24]} 18. Nxe6 {[%emt 0:00:47]} Qd6 {[%emt 0:00:51]} 19. Nxd8+ {[%emt 0:00:14]} Bxd8 {[%emt 0:00:26]} 20. Qf3 {[%emt 0:00:12]} Bc7 {[%emt 0:01:12]} 21. g3 {[%emt 0:00:52]} Bc8 {[%emt 0:00:16]} 22. Bf5 {[%emt 0:00:28]} Bxf5 {[%emt 0:00:38]} 23. Qxf5 {[%emt 0:00:02]} Rxe1+ {[%emt 0:00:07]} 24. Rxe1 {[%emt 0:00:02]} Qd7 {[%emt 0:00:11]} 25. Qxd7+ {[%emt 0:00:21]} Nxd7 {[%emt 0:00:02]} 26. b3 {[%emt 0:00:24]} Bd6 {[%emt 0:00:27]} 27. c4 {[%emt 0:00:11]} bxc4 {[%emt 0:00:02]} 28. bxc4 {[%emt 0:00:01]} N5f6 {[%emt 0:00:23]} 29. f3 {[%emt 0:00:15]} Bc7 {[%emt 0:00:40]} 30. Rb1 {[%emt 0:00:35]} Nb6 {[%emt 0:00:39]} 31. c5 {[%emt 0:00:27]} Nbd5 {[%emt 0:00:01]} 32. Rb7 {[%emt 0:00:05]} a6 {[%emt 0:01:40]} 33. Ra7 {[%emt 0:00:01]} Ke6 {[%emt 0:00:25]} 34. Rxa6 {[%emt 0:00:06]} Kd7 {[%emt 0:00:01]} 35. Ra8 {[%emt 0:00:12]} Bd8 {[%emt 0:00:36]} 36. Ra7+ {[%emt 0:00:20]} Nc7 {[%emt 0:00:05]} 37. Bf4 {[%emt 0:00:17]} Nfd5 {[%emt 0:00:03]} 38. Be5 {[%emt 0:00:07]} g6 {[%emt 0:00:18]} 39. Kf2 {[%emt 0:00:07]} Nc3 {[%emt 0:00:19]} 40. Bxc7 {[%emt 0:00:43]} Bxc7 {[%emt 0:00:01]} 41. Ra3 {[%emt 0:00:09]} Nd5 {[%emt 0:00:30]} 42. Rb3 {[%emt 0:00:08]} Kc8 {[%emt 0:00:09]} 43. a3 {[%emt 0:00:10]} Ba5 {[%emt 0:00:11]} 44. Ke2 {[%emt 0:00:04]} h5 {[%emt 0:00:23]} 45. Kd3 {[%emt 0:00:09]} Nf6 {[%emt 0:00:21]} 46. h3 {[%emt 0:00:09]} Be1 {[%emt 0:00:12]} 47. g4 {[%emt 0:00:02]} hxg4 {[%emt 0:00:00]} 48. hxg4 {[%emt 0:00:03]} Ba5 {[%emt 0:00:18]} 49. Rb1 {[%emt 0:00:16]} Bc7 {[%emt 0:00:06]} 50. Rh1 {[%emt 0:00:08]} Nd5 {[%emt 0:00:27]} 51. Rh7 {[%emt 0:00:24]} g5 {[%emt 0:00:31]} 52. a4 {[%emt 0:00:23]} Nb4+ {[%emt 0:00:23]} 53. Ke4 {[%emt 0:00:20]} Bf4 {[%emt 0:00:11]} 54. Rg7 {[%emt 0:00:24]} Nc2 {[%emt 0:00:16]} 55. d5 {[%emt 0:00:08]} cxd5+ {[%emt 0:00:06]} 56. Kxd5 {[%emt 0:00:02]} Ne1 {[%emt 0:00:02]} 57. Kc6 {[%emt 0:00:16]} Kd8 {[%emt 0:00:38]} 58. Kb7 {[%emt 0:00:12]} Nxf3 {[%emt 0:00:13]} 59. c6 {[%emt 0:00:07]} Nh2 {[%emt 0:00:23]} 60. Rxg5 {[%emt 0:00:24]} 1-0

[Event "Kupreichik Memorial Rapid 2019"]
[Site "Minsk"]
[Date "2019.08.15"]
[Round "2.27"]
[White "Karlov, Egor"]
[Black "Uzlavataya, Anhelina"]
[Result "1-0"]
[ECO "A84"]
[WhiteElo "1728"]
[BlackElo "2051"]
[Annotator "NA"]
[PlyCount "101"]
[EventDate "2019.08.15"]
[EventType "swiss"]
[EventCountry "BLR"]
[SourceTitle "playchess.com"]
[Source "ChessBase"]
[SourceQuality "1"]
[TimeControl "900+10"]

1. d4 {[%emt 0:00:00]} f5 {[%emt 0:00:00]} 2. c4 {[%emt 0:00:00]} g6 {[%emt 0:00:00]} 3. Nc3 {[%emt 0:00:00]} Nf6 {[%emt 0:00:00]} 4. Nf3 {[%emt 0:00:03]} Bg7 {[%emt 0:00:07]} 5. e3 {[%emt 0:00:03]} O-O {[%emt 0:00:02]} 6. Bd3 {[%emt 0:00:09]} d6 {[%emt 0:00:03]} 7. O-O {[%emt 0:00:05]} Nc6 {[%emt 0:00:06]} 8. a3 {[%emt 0:00:52]} e5 {[%emt 0:00:12]} 9. dxe5 {[%emt 0:00:25]} dxe5 {[%emt 0:00:02]} 10. Be2 {[%emt 0:00:02]} Qe7 {[%emt 0:01:55]} 11. Qc2 {[%emt 0:00:05]} h6 {[%emt 0:00:32]} 12. b4 {[%emt 0:00:24]} Bd7 {[%emt 0:01:18]} 13. Bb2 {[%emt 0:00:13]} e4 {[%emt 0:03:16]} 14. Nd2 {[%emt 0:01:18]} Be6 {[%emt 0:00:56]} 15. Nb3 {[%emt 0:00:59]} Ne5 {[%emt 0:00:58]} 16. Nb5 {[%emt 0:01:24]} Bf7 {[%emt 0:00:36]} 17. Rfd1 {[%emt 0:04:25]} a6 {[%emt 0:01:06]} 18. N5d4 {[%emt 0:00:33]} Rad8 {[%emt 0:01:47]} 19. Nc5 {[%emt 0:00:54]} c6 {[%emt 0:00:18]} 20. Ndb3 {[%emt 0:00:55]} Nh7 {[%emt 0:03:14]} 21. Na5 {[%emt 0:03:04]} b6 {[%emt 0:01:24]} 22. Bxe5 {[%emt 0:00:01]} Rxd1+ {[%emt 0:00:24]} 23. Rxd1 {[%emt 0:00:07]} Qxe5 {[%emt 0:00:03]} 24. Nd7 {[%emt 0:00:48]} Qc7 {[%emt 0:00:22]} 25. Nxf8 {[%emt 0:00:21]} Nxf8 {[%emt 0:00:04]} 26. Nb3 {[%emt 0:00:10]} Nd7 {[%emt 0:00:17]} 27. c5 {[%emt 0:01:22]} b5 {[%emt 0:00:11]} 28. Na5 {[%emt 0:00:12]} Be5 {[%emt 0:00:06]} 29. h3 {[%emt 0:00:18]} Nf6 {[%emt 0:00:02]} 30. Nb3 {[%emt 0:00:24]} Nd5 {[%emt 0:00:01]} 31. Nd4 {[%emt 0:00:02]} Kg7 {[%emt 0:00:11]} 32. Qd2 {[%emt 0:00:20]} Qc8 {[%emt 0:00:17]} 33. f4 {[%emt 0:00:14]} Bf6 {[%emt 0:00:11]} 34. g4 {[%emt 0:00:04]} fxg4 {[%emt 0:00:06]} 35. Bxg4 {[%emt 0:00:03]} Qe8 {[%emt 0:00:09]} 36. Qf2 {[%emt 0:00:24]} h5 {[%emt 0:00:11]} 37. Be2 {[%emt 0:00:07]} Qc8 {[%emt 0:00:04]} 38. f5 {[%emt 0:00:04]} Bxd4 {[%emt 0:00:12]} 39. Rxd4 {[%emt 0:00:03]} Qxf5 {[%emt 0:00:15]} 40. Qxf5 {[%emt 0:00:20]} gxf5 {[%emt 0:00:02]} 41. Kf2 {[%emt 0:00:05]} Kf6 {[%emt 0:00:01]} 42. Rd2 {[%emt 0:00:11]} Ke5 {[%emt 0:00:05]} 43. h4 {[%emt 0:00:06]} Nxe3 {[%emt 0:00:42]} 44. Rd7 {[%emt 0:00:24]} Be6 {[%emt 0:00:02]} 45. Rd6 {[%emt 0:00:08]} Nc4 {[%emt 0:00:23]} 46. Rxc6 {[%emt 0:00:07]} e3+ {[%emt 0:00:07]} 47. Kf1 {[%emt 0:00:08]} Nxa3 {[%emt 0:00:10]} 48. Rxa6 {[%emt 0:00:03]} Nc2 {[%emt 0:00:02]} 49. c6 {[%emt 0:00:02]} Nxb4 {[%emt 0:00:03]} 50. Rb6 {[%emt 0:00:04]} Kd6 {[%emt 0:00:29]} 51. c7+ {[%emt 0:00:04]} 1-0

[Event "Kupreichik Memorial Rapid 2019"]
[Site "Minsk"]
[Date "2019.08.15"]
[Round "2.28"]
[White "Shaban, Alena"]
[Black "Kozlov, Valentin"]
[Result "1-0"]
[ECO "A05"]
[WhiteElo "2030"]
[BlackElo "1871"]
[Annotator "NA"]
[PlyCount "83"]
[EventDate "2019.08.15"]
[EventType "swiss"]
[EventCountry "BLR"]
[SourceTitle "playchess.com"]
[Source "ChessBase"]
[SourceQuality "1"]
[TimeControl "900+10"]

1. Nf3 {[%emt 0:00:00]} Nf6 {[%emt 0:00:00]} 2. g3 {[%emt 0:00:00]} g6 {[%emt 0:00:00]} 3. Bg2 {[%emt 0:00:00]} Bg7 {[%emt 0:00:00]} 4. O-O {[%emt 0:00:00]} O-O {[%emt 0:00:00]} 5. d3 {[%emt 0:00:00]} c5 {[%emt 0:00:02]} 6. e4 {[%emt 0:00:01]} d6 {[%emt 0:00:08]} 7. c3 {[%emt 0:00:23]} Nc6 {[%emt 0:00:03]} 8. Be3 {[%emt 0:00:40]} Bd7 {[%emt 0:00:09]} 9. Nbd2 {[%emt 0:00:12]} Qc8 {[%emt 0:00:14]} 10. d4 {[%emt 0:00:14]} cxd4 {[%emt 0:00:29]} 11. cxd4 {[%emt 0:00:03]} Bh3 {[%emt 0:00:37]} 12. Rc1 {[%emt 0:00:17]} Bxg2 {[%emt 0:00:08]} 13. Kxg2 {[%emt 0:00:02]} Qe8 {[%emt 0:00:48]} 14. Qb3 {[%emt 0:00:29]} Na5 {[%emt 0:01:50]} 15. Qb4 {[%emt 0:01:42]} b6 {[%emt 0:00:17]} 16. Rc7 {[%emt 0:00:48]} Ng4 {[%emt 0:00:43]} 17. Rfc1 {[%emt 0:01:44]} Nxe3+ {[%emt 0:00:24]} 18. fxe3 {[%emt 0:00:01]} Bh6 {[%emt 0:00:36]} 19. Qc3 {[%emt 0:00:05]} Qa4 {[%emt 0:01:41]} 20. b4 {[%emt 0:00:54]} Qxa2 {[%emt 0:00:44]} 21. bxa5 {[%emt 0:00:23]} Qxa5 {[%emt 0:00:50]} 22. Qxa5 {[%emt 0:01:41]} bxa5 {[%emt 0:00:01]} 23. Rxe7 {[%emt 0:01:00]} Bxe3 {[%emt 0:00:12]} 24. Rc3 {[%emt 0:00:17]} Bh6 {[%emt 0:00:14]} 25. Rcc7 {[%emt 0:00:27]} Rab8 {[%emt 0:00:08]} 26. Nc4 {[%emt 0:00:12]} g5 {[%emt 0:01:22]} 27. g4 {[%emt 0:00:29]} a4 {[%emt 0:00:45]} 28. Rxa7 {[%emt 0:00:23]} Rb4 {[%emt 0:00:11]} 29. Nxd6 {[%emt 0:00:06]} Bg7 {[%emt 0:00:48]} 30. Nxf7 {[%emt 0:01:43]} a3 {[%emt 0:00:08]} 31. N7xg5 {[%emt 0:00:19]} Bf6 {[%emt 0:00:43]} 32. Rxh7 {[%emt 0:00:47]} a2 {[%emt 0:01:01]} 33. Rxa2 {[%emt 0:00:57]} Bxg5 {[%emt 0:00:35]} 34. Nxg5 {[%emt 0:00:02]} Rxd4 {[%emt 0:00:02]} 35. Raa7 {[%emt 0:00:19]} Re8 {[%emt 0:00:33]} 36. Rhe7 {[%emt 0:01:01]} Rd2+ {[%emt 0:00:30]} 37. Kg3 {[%emt 0:00:08]} Rb8 {[%emt 0:00:05]} 38. h3 {[%emt 0:00:18]} Rd3+ {[%emt 0:00:48]} 39. Kh4 {[%emt 0:00:01]} Rc3 {[%emt 0:00:13]} 40. Ne6 {[%emt 0:00:07]} Rf3 {[%emt 0:00:14]} 41. Rg7+ {[%emt 0:00:03]} Kh8 {[%emt 0:00:05]} 42. Rh7+ {[%emt 0:00:02]} 1-0

[Event "Kupreichik Memorial Rapid 2019"]
[Site "Minsk"]
[Date "2019.08.15"]
[Round "2.29"]
[White "Drobyshevsky, Vasily"]
[Black "Tyurin, Artem"]
[Result "0-1"]
[ECO "E22"]
[WhiteElo "1441"]
[BlackElo "2057"]
[Annotator "NA"]
[PlyCount "61"]
[EventDate "2019.08.15"]
[EventType "swiss"]
[EventCountry "BLR"]
[SourceTitle "playchess.com"]
[Source "ChessBase"]
[SourceQuality "1"]
[TimeControl "900+10"]

1. c4 {[%emt 0:00:00]} e6 {[%emt 0:00:00]} 2. d4 {[%emt 0:00:00]} Nf6 {[%emt 0:00:00]} 3. Nc3 {[%emt 0:00:00]} Bb4 {[%emt 0:00:00]} 4. Qb3 {[%emt 0:00:04]} Nc6 {[%emt 0:00:12]} 5. a3 {[%emt 0:00:30]} Nxd4 {[%emt 0:00:04]} 6. Qd1 {[%emt 0:00:46]} Bxc3+ {[%emt 0:00:02]} 7. bxc3 {[%emt 0:00:03]} Nc6 {[%emt 0:00:03]} 8. Nf3 {[%emt 0:00:05]} O-O {[%emt 0:00:06]} 9. Bg5 {[%emt 0:00:03]} h6 {[%emt 0:00:18]} 10. Bh4 {[%emt 0:00:03]} d6 {[%emt 0:00:02]} 11. e3 {[%emt 0:00:04]} e5 {[%emt 0:00:03]} 12. Be2 {[%emt 0:00:02]} Be6 {[%emt 0:00:05]} 13. Qc2 {[%emt 0:00:31]} Qe7 {[%emt 0:00:11]} 14. O-O {[%emt 0:00:07]} g5 {[%emt 0:01:41]} 15. Bg3 {[%emt 0:00:02]} Nd7 {[%emt 0:00:14]} 16. e4 {[%emt 0:01:06]} Nc5 {[%emt 0:00:16]} 17. Nd2 {[%emt 0:00:27]} Qf6 {[%emt 0:00:49]} 18. Nb3 {[%emt 0:01:31]} Nxb3 {[%emt 0:00:08]} 19. Qxb3 {[%emt 0:00:02]} Na5 {[%emt 0:00:02]} 20. Qb4 {[%emt 0:00:15]} b6 {[%emt 0:00:10]} 21. f3 {[%emt 0:00:43]} c5 {[%emt 0:00:22]} 22. Qb5 {[%emt 0:00:21]} Rab8 {[%emt 0:00:16]} 23. Rfd1 {[%emt 0:00:19]} a6 {[%emt 0:00:05]} 24. Qxa6 {[%emt 0:00:54]} Bd7 {[%emt 0:00:31]} 25. Rab1 {[%emt 0:00:38]} Bc6 {[%emt 0:00:50]} 26. Qa7 {[%emt 0:01:39]} Rb7 {[%emt 0:00:11]} 27. Qa6 {[%emt 0:00:03]} Rfb8 {[%emt 0:00:08]} 28. Rb2 {[%emt 0:02:15]} Qe7 {[%emt 0:00:21]} 29. Rxb6 {[%emt 0:05:32]} Rxb6 {[%emt 0:00:06]} 30. Qxa5 {[%emt 0:00:02]} Qc7 {[%emt 0:00:31]} 31. Ra1 0-1

[Event "Kupreichik Memorial Rapid 2019"]
[Site "Minsk"]
[Date "2019.08.15"]
[Round "2.30"]
[White "Khrapko, Marharyta"]
[Black "Pogorelov, Aleksey"]
[Result "1-0"]
[ECO "B75"]
[WhiteElo "2073"]
[BlackElo "1548"]
[Annotator "NA"]
[PlyCount "41"]
[EventDate "2019.08.15"]
[EventType "swiss"]
[EventCountry "BLR"]
[SourceTitle "playchess.com"]
[Source "ChessBase"]
[SourceQuality "1"]
[TimeControl "900+10"]

1. e4 {[%emt 0:00:00]} c5 {[%emt 0:00:00]} 2. Nf3 {[%emt 0:00:00]} d6 {[%emt 0:00:00]} 3. d4 {[%emt 0:00:00]} cxd4 {[%emt 0:00:00]} 4. Nxd4 {[%emt 0:00:00]} Nf6 {[%emt 0:00:00]} 5. Nc3 {[%emt 0:00:01]} g6 {[%emt 0:00:00]} 6. Be3 {[%emt 0:00:19]} Bg7 {[%emt 0:00:03]} 7. f3 {[%emt 0:00:06]} Nc6 {[%emt 0:00:11]} 8. Bc4 {[%emt 0:00:03]} Bd7 {[%emt 0:00:29]} 9. Bb3 {[%emt 0:00:04]} a6 {[%emt 0:00:45]} 10. Qd2 {[%emt 0:00:28]} Rc8 {[%emt 0:00:22]} 11. O-O-O {[%emt 0:00:08]} b5 {[%emt 0:01:02]} 12. Bh6 {[%emt 0:00:22]} O-O {[%emt 0:00:07]} 13. Nxc6 {[%emt 0:01:07]} Bxc6 {[%emt 0:00:45]} 14. h4 {[%emt 0:00:24]} a5 {[%emt 0:00:38]} 15. h5 {[%emt 0:01:22]} Bxh6 {[%emt 0:05:28]} 16. Qxh6 {[%emt 0:00:15]} a4 {[%emt 0:02:10]} 17. e5 {[%emt 0:04:00]} Nxh5 {[%emt 0:02:31]} 18. Rxh5 {[%emt 0:00:28]} gxh5 {[%emt 0:00:25]} 19. Rh1 {[%emt 0:00:01]} Qb6 {[%emt 0:02:13]} 20. Rxh5 {[%emt 0:00:29]} Qg1+ {[%emt 0:00:55]} 21. Nd1 {[%emt 0:00:02]} 1-0

[Event "Kupreichik Memorial Rapid 2019"]
[Site "Minsk"]
[Date "2019.08.15"]
[Round "2.31"]
[White "Strizhnev, Ivan"]
[Black "Spizharny, Mikhail"]
[Result "0-1"]
[ECO "B41"]
[WhiteElo "1394"]
[BlackElo "2079"]
[Annotator "NA"]
[PlyCount "40"]
[EventDate "2019.08.15"]
[EventType "swiss"]
[EventCountry "BLR"]
[SourceTitle "playchess.com"]
[Source "ChessBase"]
[SourceQuality "1"]
[TimeControl "900+10"]

1. e4 {[%emt 0:00:00]} c5 {[%emt 0:00:00]} 2. Nf3 {[%emt 0:00:00]} e6 {[%emt 0:00:00]} 3. d4 {[%emt 0:00:04]} cxd4 {[%emt 0:00:00]} 4. Nxd4 {[%emt 0:00:03]} a6 {[%emt 0:00:00]} 5. c4 {[%emt 0:00:12]} Nf6 {[%emt 0:00:02]} 6. Nc3 {[%emt 0:00:06]} Bb4 {[%emt 0:00:02]} 7. Bd3 {[%emt 0:00:16]} Nc6 {[%emt 0:00:02]} 8. Nxc6 {[%emt 0:00:14]} dxc6 {[%emt 0:00:03]} 9. O-O {[%emt 0:00:09]} e5 {[%emt 0:00:19]} 10. Ne2 {[%emt 0:02:33]} a5 {[%emt 0:01:43]} 11. Bg5 {[%emt 0:01:00]} h6 {[%emt 0:01:11]} 12. Bh4 {[%emt 0:01:11]} g5 {[%emt 0:04:42]} 13. Bg3 {[%emt 0:00:10]} Qe7 {[%emt 0:00:01]} 14. Rc1 {[%emt 0:03:07]} Nh5 {[%emt 0:00:47]} 15. Bb1 {[%emt 0:02:28]} Nf4 {[%emt 0:01:25]} 16. f3 {[%emt 0:01:00]} Be6 {[%emt 0:01:11]} 17. Bf2 {[%emt 0:01:02]} Rd8 {[%emt 0:00:38]} 18. Nxf4 {[%emt 0:03:38]} Rxd1 {[%emt 0:00:06]} 19. Rfxd1 {[%emt 0:00:02]} gxf4 {[%emt 0:00:09]} 20. c5 {[%emt 0:00:12]} a4 0-1

[Event "Kupreichik Memorial Rapid 2019"]
[Site "Minsk"]
[Date "2019.08.15"]
[Round "2.32"]
[White "Rataika, Mikalai"]
[Black "Makarau, Yauheni"]
[Result "1-0"]
[ECO "D00"]
[WhiteElo "1920"]
[BlackElo "1459"]
[Annotator "NA"]
[PlyCount "45"]
[EventDate "2019.08.15"]
[EventType "swiss"]
[EventCountry "BLR"]
[SourceTitle "playchess.com"]
[Source "ChessBase"]
[SourceQuality "1"]
[TimeControl "900+10"]

1. d4 {[%emt 0:00:00]} d5 {[%emt 0:00:00]} 2. b3 {[%emt 0:00:00]} e6 {[%emt 0:00:00]} 3. Bb2 {[%emt 0:00:03]} Nf6 {[%emt 0:00:00]} 4. e3 {[%emt 0:00:03]} Be7 {[%emt 0:00:00]} 5. Bd3 {[%emt 0:00:02]} O-O {[%emt 0:00:01]} 6. Nf3 {[%emt 0:00:04]} b6 {[%emt 0:00:02]} 7. O-O {[%emt 0:00:08]} Bb7 {[%emt 0:00:01]} 8. Nbd2 {[%emt 0:00:24]} c5 {[%emt 0:00:05]} 9. Ne5 {[%emt 0:00:22]} Nbd7 {[%emt 0:00:34]} 10. f4 {[%emt 0:00:13]} Rc8 {[%emt 0:01:07]} 11. g4 {[%emt 0:00:40]} Ne4 {[%emt 0:01:42]} 12. Rf3 {[%emt 0:01:47]} Nxd2 {[%emt 0:01:16]} 13. Qxd2 {[%emt 0:00:06]} c4 {[%emt 0:01:11]} 14. Bxh7+ {[%emt 0:00:42]} Kxh7 {[%emt 0:00:49]} 15. Nxd7 {[%emt 0:00:33]} Qxd7 {[%emt 0:00:22]} 16. Rh3+ {[%emt 0:00:03]} Kg8 {[%emt 0:00:23]} 17. g5 {[%emt 0:02:09]} e5 {[%emt 0:01:16]} 18. Qg2 {[%emt 0:01:23]} exf4 {[%emt 0:02:00]} 19. exf4 {[%emt 0:00:26]} cxb3 {[%emt 0:00:44]} 20. Qg3 {[%emt 0:01:04]} Rxc2 {[%emt 0:01:27]} 21. Qh4 {[%emt 0:00:23]} f6 {[%emt 0:01:30]} 22. g6 {[%emt 0:00:45]} Qxh3 {[%emt 0:02:14]} 23. Qxh3 {[%emt 0:00:03]} 1-0

[Event "Kupreichik Memorial Rapid 2019"]
[Site "Minsk"]
[Date "2019.08.15"]
[Round "2.33"]
[White "Yasiukovich, Sergei"]
[Black "Talma, Sergei"]
[Result "1-0"]
[ECO "B20"]
[WhiteElo "1529"]
[BlackElo "1882"]
[Annotator "NA"]
[PlyCount "44"]
[EventDate "2019.08.15"]
[EventType "swiss"]
[EventCountry "BLR"]
[SourceTitle "playchess.com"]
[Source "ChessBase"]
[SourceQuality "1"]
[TimeControl "900+10"]

1. e4 {[%emt 0:00:00]} c5 {[%emt 0:00:00]} 2. Be2 {[%emt 0:00:00]} Nc6 {[%emt 0:00:00]} 3. f4 {[%emt 0:00:00]} e5 {[%emt 0:00:15]} 4. d3 {[%emt 0:00:01]} d6 {[%emt 0:00:22]} 5. Nf3 {[%emt 0:00:02]} Bg4 {[%emt 0:00:30]} 6. O-O {[%emt 0:00:03]} Nf6 {[%emt 0:00:12]} 7. c3 Be7 {[%emt 0:00:14]} 8. Na3 {[%emt 0:01:03]} O-O 9. Qe1 {[%emt 0:00:19]} exf4 {[%emt 0:02:00]} 10. Bxf4 b5 11. Qg3 {[%emt 0:02:28]} Be6 {[%emt 0:02:40]} 12. Ng5 {[%emt 0:00:51]} b4 {[%emt 0:00:52]} 13. Nxe6 {[%emt 0:00:47]} fxe6 {[%emt 0:00:03]} 14. Nc4 {[%emt 0:00:31]} e5 {[%emt 0:04:50]} 15. Bh6 {[%emt 0:00:41]} Ne8 {[%emt 0:01:39]} 16. Ne3 {[%emt 0:01:00]} Kh8 {[%emt 0:00:43]} 17. Rxf8+ {[%emt 0:00:23]} Bxf8 {[%emt 0:00:02]} 18. Rf1 {[%emt 0:00:18]} Nf6 {[%emt 0:01:52]} 19. Bg5 {[%emt 0:00:42]} Be7 {[%emt 0:00:10]} 20. Nf5 {[%emt 0:00:17]} Qf8 {[%emt 0:01:20]} 21. Nxe7 {[%emt 0:01:23]} Nxe7 {[%emt 0:00:09]} 22. Qf3 {[%emt 0:02:01]} bxc3 1-0

[Event "Kupreichik Memorial Rapid 2019"]
[Site "Minsk"]
[Date "2019.08.15"]
[Round "2.34"]
[White "Masjuk, Vladimir"]
[Black "Novik, Nikita"]
[Result "1-0"]
[ECO "C03"]
[WhiteElo "1900"]
[BlackElo "1355"]
[Annotator "NA"]
[PlyCount "69"]
[EventDate "2019.08.15"]
[EventType "swiss"]
[EventCountry "BLR"]
[SourceTitle "playchess.com"]
[Source "ChessBase"]
[SourceQuality "1"]
[TimeControl "900+10"]

1. e4 {[%emt 0:00:00]} e6 {[%emt 0:00:00]} 2. d4 {[%emt 0:00:00]} d5 {[%emt 0:00:00]} 3. Nd2 {[%emt 0:00:00]} dxe4 {[%emt 0:00:00]} 4. Nxe4 {[%emt 0:00:01]} Nc6 {[%emt 0:00:00]} 5. c3 {[%emt 0:00:02]} Be7 {[%emt 0:00:03]} 6. Nf3 {[%emt 0:00:02]} Nf6 {[%emt 0:00:02]} 7. Bd3 {[%emt 0:00:04]} b6 {[%emt 0:00:24]} 8. O-O {[%emt 0:00:07]} Bb7 {[%emt 0:00:02]} 9. Nxf6+ {[%emt 0:00:10]} Bxf6 {[%emt 0:00:03]} 10. Qc2 {[%emt 0:00:10]} h6 {[%emt 0:00:42]} 11. Bf4 {[%emt 0:00:10]} Qd7 {[%emt 0:01:19]} 12. Rfe1 {[%emt 0:00:17]} O-O-O {[%emt 0:00:33]} 13. b4 {[%emt 0:00:42]} g5 {[%emt 0:00:11]} 14. Bg3 {[%emt 0:00:44]} h5 {[%emt 0:00:39]} 15. Bb5 {[%emt 0:01:28]} Qd5 {[%emt 0:02:14]} 16. Bf1 {[%emt 0:01:19]} Be7 {[%emt 0:04:32]} 17. h4 {[%emt 0:02:33]} gxh4 {[%emt 0:01:18]} 18. Bxh4 {[%emt 0:00:13]} Bxh4 {[%emt 0:00:41]} 19. Nxh4 {[%emt 0:00:02]} Rdg8 {[%emt 0:00:35]} 20. Re3 {[%emt 0:00:56]} Rg4 {[%emt 0:00:44]} 21. Rh3 {[%emt 0:00:47]} Rhg8 {[%emt 0:01:29]} 22. f3 {[%emt 0:01:14]} Nxd4 {[%emt 0:02:07]} 23. cxd4 {[%emt 0:00:14]} Qxd4+ {[%emt 0:00:00]} 24. Qf2 {[%emt 0:00:02]} Qxa1 {[%emt 0:00:53]} 25. fxg4 {[%emt 0:00:03]} Rxg4 {[%emt 0:00:02]} 26. a3 {[%emt 0:00:53]} Qg7 {[%emt 0:00:29]} 27. Be2 {[%emt 0:00:59]} Rg5 {[%emt 0:00:11]} 28. Nf3 {[%emt 0:00:48]} Rd5 {[%emt 0:00:07]} 29. Rg3 {[%emt 0:00:38]} Qa1+ {[%emt 0:00:03]} 30. Kh2 {[%emt 0:00:01]} Qh8 {[%emt 0:00:04]} 31. Nh4 {[%emt 0:00:34]} Re5 {[%emt 0:00:30]} 32. Bf3 {[%emt 0:00:13]} Bxf3 33. Qxf3 {[%emt 0:00:08]} Kb8 {[%emt 0:00:17]} 34. Qxf7 {[%emt 0:00:12]} Re4 {[%emt 0:00:12]} 35. Rg8+ {[%emt 0:00:07]} 1-0

[Event "Kupreichik Memorial Rapid 2019"]
[Site "Minsk"]
[Date "2019.08.15"]
[Round "2.35"]
[White "Patokova, Viktoriya"]
[Black "Dvurechensky, Viacheslav"]
[Result "0-1"]
[ECO "C41"]
[WhiteElo "1503"]
[BlackElo "1840"]
[Annotator "NA"]
[PlyCount "58"]
[EventDate "2019.08.15"]
[EventType "swiss"]
[EventCountry "BLR"]
[SourceTitle "playchess.com"]
[Source "ChessBase"]
[SourceQuality "1"]
[TimeControl "900+10"]

1. e4 {[%emt 0:00:00]} d6 {[%emt 0:00:00]} 2. d4 {[%emt 0:00:00]} Nf6 {[%emt 0:00:00]} 3. Nc3 {[%emt 0:00:04]} e5 {[%emt 0:00:00]} 4. Nf3 {[%emt 0:00:08]} Nbd7 {[%emt 0:00:13]} 5. Bc4 {[%emt 0:00:13]} Be7 {[%emt 0:00:02]} 6. O-O {[%emt 0:00:06]} O-O {[%emt 0:00:04]} 7. h3 {[%emt 0:00:08]} c6 {[%emt 0:00:01]} 8. dxe5 {[%emt 0:00:12]} Nxe5 {[%emt 0:01:24]} 9. Nxe5 {[%emt 0:00:08]} dxe5 {[%emt 0:00:02]} 10. Qe2 {[%emt 0:00:07]} b5 {[%emt 0:00:52]} 11. Bb3 {[%emt 0:00:14]} a5 {[%emt 0:00:16]} 12. a4 {[%emt 0:00:40]} b4 {[%emt 0:00:40]} 13. Nb1 {[%emt 0:02:32]} Qd4 {[%emt 0:01:34]} 14. Nd2 {[%emt 0:00:57]} Ba6 {[%emt 0:00:37]} 15. Bc4 {[%emt 0:00:30]} Bxc4 {[%emt 0:00:26]} 16. Qxc4 {[%emt 0:01:29]} Bc5 {[%emt 0:01:23]} 17. c3 {[%emt 0:01:22]} bxc3 {[%emt 0:00:30]} 18. bxc3 {[%emt 0:00:10]} Qxc4 {[%emt 0:00:45]} 19. Nxc4 {[%emt 0:00:03]} Nxe4 {[%emt 0:01:09]} 20. Nxe5 {[%emt 0:00:13]} Rfe8 {[%emt 0:01:22]} 21. Nd3 {[%emt 0:03:33]} Ba7 {[%emt 0:01:12]} 22. Bb2 {[%emt 0:01:26]} Rad8 {[%emt 0:01:48]} 23. Rad1 {[%emt 0:00:23]} f5 {[%emt 0:01:33]} 24. c4 {[%emt 0:01:22]} Rd7 {[%emt 0:00:25]} 25. c5 {[%emt 0:00:38]} Red8 {[%emt 0:00:48]} 26. f3 {[%emt 0:00:42]} Nxc5 {[%emt 0:00:22]} 27. Nxc5 {[%emt 0:00:16]} Bxc5+ {[%emt 0:00:05]} 28. Kh2 {[%emt 0:00:11]} Rxd1 {[%emt 0:00:03]} 29. Rxd1 {[%emt 0:00:03]} Rxd1 {[%emt 0:00:01]} 0-1